fUST/lending_fUST_20241231
["ID","MTS","AMOUNT","RATE_DAILY","PERIOD"]
[347255999,1735641050731,-500.0,0.00019726,3]
[347256000,1735641050740,-500.0,0.00019726,3]
[347256001,1735641050749,-500.0,0.00019726,3]
[347256002,1735641050758,-500.0,0.00019726,3]
[347256003,1735641050767,-500.0,0.00019726,3]
[347256004,1735641050776,-500.0,0.00019726,3]
[347256005,1735641050785,-1170.35,0.00019726,3]
[347256006,1735641050799,-500.0,0.00019726,3]
[347256007,1735641050810,-500.0,0.00019726,3]
[347256008,1735641050819,-239.47866439,0.00019726,3]
[347256009,1735641050828,-154.91212019,0.00019726,3]
[347256010,1735641050838,-859.02,0.00019726,3]
[347256011,1735641050848,-500.0,0.00019726,3]
[347256012,1735641050857,-500.0,0.00019726,3]
[347256013,1735641050867,-767.32,0.00019726,3]
[347256014,1735641050876,-500.0,0.00019726,3]
[347256015,1735641050886,-771.55,0.00019726,3]
[347256016,1735641050895,-500.0,0.00019726,3]
[347256017,1735641050908,-721.11,0.00019726,3]
[347256018,1735641050917,-512.91,0.00019726,3]
[347256019,1735641050928,-807.01,0.00019726,3]
[347256020,1735641050938,-502.11968351,0.00019726,3]
[347256021,1735641050947,-500.0,0.00019726,3]
[347256022,1735641050956,-500.0,0.00019726,3]
[347256023,1735641050965,-500.0,0.00019726,3]
[347256024,1735641050974,-2707.79,0.00019726,3]
[347256025,1735641050984,-500.0,0.00019726,3]
[347256026,1735641050995,-150.24,0.00019726,3]
[347256027,1735641051005,-500.0,0.00019726,3]
[347256028,1735641051015,-500.0,0.00019726,3]
[347256029,1735641051025,-500.0,0.00019726,3]
[347256030,1735641051035,-500.0,0.00019726,3]
[347256031,1735641051044,-500.0,0.00019726,3]
[347256032,1735641051052,-500.0,0.00019726,3]
[347256033,1735641051061,-513.43326534,0.00019726,3]
[347256034,1735641051070,-500.0,0.00019726,3]
[347256035,1735641051079,-500.0,0.00019726,3]
[347256036,1735641051088,-1038.44,0.00019726,3]
[347256037,1735641051097,-500.0,0.00019726,3]
[347256038,1735641051106,-1432.65,0.00019726,3]
[347256039,1735641051115,-500.0,0.00019726,3]
[347256040,1735641051124,-500.0,0.00019726,3]
[347256041,1735641051133,-500.0,0.00019726,3]
[347256042,1735641051142,-1216.76,0.00019726,3]
[347256043,1735641051151,-500.0,0.00019726,3]
[347256044,1735641051162,-29851.26,0.00019726,3]
[347256045,1735641051171,-1072.34,0.00019726,3]
[347256046,1735641051181,-500.0,0.00019726,3]
[347256047,1735641051190,-648.72,0.00019726,3]
[347256048,1735641051199,-500.0,0.00019726,3]
[347256049,1735641051208,-617.6,0.00019726,3]
[347256050,1735641051217,-561.65,0.00019726,3]
[347256051,1735641051226,-500.0,0.00019726,3]
[347256052,1735641051235,-500.0,0.00019726,3]
[347256053,1735641051244,-965.02,0.00019726,3]
[347256054,1735641051253,-500.0,0.00019726,3]
[347256055,1735641051262,-3937.91,0.00019726,3]
[347256056,1735641051271,-500.0,0.00019726,3]
[347256057,1735641051280,-550.12,0.00019726,3]
[347256058,1735641051289,-500.0,0.00019726,3]
[347256059,1735641051298,-590.87,0.00019726,3]
[347256060,1735641051307,-638.95,0.00019726,3]
[347256061,1735641051317,-500.0,0.00019726,3]
[347256062,1735641051326,-842.09,0.00019726,3]
[347256063,1735641051335,-500.0,0.00019726,3]
[347256064,1735641051345,-500.0,0.00019726,3]
[347256065,1735641051354,-531.14,0.00019726,3]
[347256066,1735641051364,-500.0,0.00019726,3]
[347256067,1735641051373,-500.0,0.00019726,3]
[347256068,1735641051382,-500.0,0.00019726,3]
[347256069,1735641051391,-500.0,0.00019726,3]
[347256070,1735641051400,-500.0,0.00019726,3]
[347256071,1735641051410,-6278.26,0.00019726,3]
[347256072,1735641051419,-500.0,0.00019726,3]
[347256073,1735641051428,-512.72,0.00019726,3]
[347256074,1735641051437,-500.0,0.00019726,3]
[347256075,1735641051447,-500.0,0.00019726,3]
[347256076,1735641051456,-500.0,0.00019726,3]
[347256077,1735641051465,-500.0,0.00019726,3]
[347256078,1735641051474,-500.0,0.00019726,3]
[347256079,1735641051483,-4288.12,0.00019726,3]
[347256080,1735641051492,-3262.99,0.00019726,3]
[347256081,1735641051501,-2130.49,0.00019726,3]
[347256082,1735641051510,-661.64,0.00019726,3]
[347256083,1735641051519,-502.03739566,0.00019726,3]
[347256084,1735641051529,-1444.32,0.00019726,3]
[347256085,1735641051537,-500.0,0.00019726,3]
[347256086,1735641051546,-500.0,0.00019726,3]
[347256087,1735641051555,-505.8299747,0.00019726,3]
[347256088,1735641051564,-1080.15,0.00019726,3]
[347256089,1735641051573,-500.0,0.00019726,3]
[347256090,1735641051583,-150.24,0.00019726,2]
[347256091,1735641051592,-500.0,0.00019726,2]
[347256092,1735641051601,-1212.67,0.00019726,3]
[347256093,1735641051610,-200.44575115,0.00019726,3]
[347256094,1735641051619,-500.0,0.00019726,3]
[347256095,1735641051627,-500.0,0.00019773,2]
[347256096,1735641051637,-906.16511709,0.00019776,2]
[347256097,1735641051646,-10712.11,0.000198,2]
[347256098,1735641051655,-3430.3,0.000198,2]
[347256099,1735641051664,-555.87786428,0.00019899,2]
[347256100,1735641051673,-500.0,0.00019973,2]
[347256101,1735641051683,-500.0,0.0002,3]
[347256102,1735641051692,-420.0,0.0002,2]
[347256103,1735641051701,-500.0,0.0002,3]
[347256104,1735641051710,-500.0,0.0002,3]
[347256105,1735641051720,-500.0,0.0002,3]
[347256106,1735641051729,-2077.373535,0.0002,2]
[347256107,1735641051738,-2077.373535,0.0002,2]
[347256108,1735641051747,-2077.373535,0.0002,2]
[347256109,1735641051756,-2077.37353041,0.0002,2]
[347256110,1735641051824,-500.0,0.0002,3]
[347256111,1735641051834,-500.0,0.0002,3]
[347256112,1735641051843,-575.41284767,0.0002,3]
[347256113,1735641051852,-1861.03,0.0002,3]
[347256114,1735641051861,-500.0,0.0002,3]
[347256115,1735641051871,-500.0,0.0002,3]
[347256116,1735641051881,-500.0,0.0002,3]
[347256117,1735641051890,-500.0,0.0002,3]
[347256118,1735641051899,-500.0,0.0002,2]
[347256119,1735641051909,-500.0,0.0002,3]
[347256120,1735641051917,-500.0,0.0002,3]
[347256121,1735641051927,-500.0,0.0002,3]
[347256122,1735641051936,-500.0,0.0002,3]
[347256123,1735641051945,-500.0,0.0002,3]
[347256124,1735641051955,-500.0,0.0002,3]
[347256125,1735641051964,-500.0,0.0002,3]
[347256126,1735641051973,-500.0,0.0002,3]
[347256127,1735641051982,-500.0,0.0002,3]
[347256128,1735641051991,-500.0,0.0002,3]
[347256129,1735641052000,-500.0,0.0002,3]
[347256130,1735641052009,-7532.69,0.0002,3]
[347256131,1735641052018,-500.0,0.0002,3]
[347256132,1735641052027,-558.44,0.0002,3]
[347256133,1735641052037,-500.0,0.0002,3]
[347256134,1735641052046,-500.0,0.0002,3]
[347256135,1735641052055,-500.0,0.0002,3]
[347256136,1735641052065,-1170.35,0.0002,3]
[347256137,1735641052074,-517.46183231,0.0002,3]
[347256138,1735641052083,-151.0,0.0002,2]
[347256139,1735641052093,-859.02,0.0002,3]
[347256140,1735641052103,-500.0,0.0002,3]
[347256141,1735641052112,-767.32,0.0002,3]
[347256142,1735641052121,-500.0,0.0002,3]
[347256143,1735641052129,-771.55,0.0002,3]
[347256144,1735641052139,-500.0,0.0002,3]
[347256145,1735641052148,-150.0,0.0002,2]
[347256146,1735641052159,-721.11,0.0002,3]
[347256147,1735641052170,-512.91,0.0002,3]
[347256148,1735641052179,-807.01,0.0002,3]
[347256149,1735641052188,-500.0,0.0002,3]
[347256150,1735641052197,-500.0,0.0002,3]
[347256151,1735641052206,-500.0,0.0002,3]
[347256152,1735641052216,-2707.79,0.0002,3]
[347256153,1735641052225,-500.0,0.0002,3]
[347256154,1735641052234,-500.0,0.0002,3]
[347256155,1735641052243,-500.0,0.0002,3]
[347256156,1735641052253,-500.0,0.0002,3]
[347256157,1735641052262,-500.0,0.0002,3]
[347256158,1735641052271,-500.0,0.0002,3]
[347256159,1735641052280,-232.41781231,0.0002,3]
[347256160,1735641052289,-310.96142832,0.0002,3]
[347256161,1735641052298,-1038.44,0.0002,3]
[347256162,1735641052307,-500.0,0.0002,3]
[347256163,1735641052316,-1432.65,0.0002,3]
[347256164,1735641052325,-500.0,0.0002,3]
[347256165,1735641052334,-500.0,0.0002,3]
[347256166,1735641052344,-500.0,0.0002,3]
[347256167,1735641052353,-1216.76,0.0002,3]
[347256168,1735641052362,-500.0,0.0002,3]
[347256169,1735641052371,-29851.26,0.0002,3]
[347256170,1735641052380,-1072.34,0.0002,3]
[347256171,1735641052389,-500.0,0.0002,3]
[347256172,1735641052398,-500.0,0.0002,3]
[347256173,1735641052410,-617.6,0.0002,3]
[347256174,1735641052419,-561.65,0.0002,3]
[347256175,1735641052428,-500.0,0.0002,3]
[347256176,1735641052437,-500.0,0.0002,3]
[347256177,1735641052447,-965.02,0.0002,3]
[347256178,1735641052455,-500.0,0.0002,3]
[347256179,1735641052464,-152.60361993,0.0002,30]
[347256180,1735641052474,-3937.91,0.0002,3]
[347256181,1735641052484,-500.0,0.0002,3]
[347256182,1735641052493,-157.62947201,0.0002,30]
[347256183,1735641052502,-550.12,0.0002,3]
[347256184,1735641052511,-500.0,0.0002,3]
[347256185,1735641052521,-590.87,0.0002,3]
[347256186,1735641052529,-638.95,0.0002,3]
[347256187,1735641052538,-842.09,0.0002,3]
[347256188,1735641052547,-500.0,0.0002,3]
[347256189,1735641052557,-500.0,0.0002,3]
[347256190,1735641052566,-531.14,0.0002,3]
[347256191,1735641052575,-500.0,0.0002,3]
[347256192,1735641052584,-500.0,0.0002,3]
[347256193,1735641052594,-500.0,0.0002,3]
[347256194,1735641052603,-500.0,0.0002,3]
[347256195,1735641052612,-6278.26,0.0002,3]
[347256196,1735641052621,-500.0,0.0002,3]
[347256197,1735641052630,-512.72,0.0002,3]
[347256198,1735641052639,-500.0,0.0002,3]
[347256199,1735641052648,-500.0,0.0002,3]
[347256200,1735641052660,-500.0,0.0002,3]
[347256201,1735641052670,-500.0,0.0002,3]
[347256202,1735641052679,-500.0,0.0002,3]
[347256203,1735641052688,-4288.12,0.0002,3]
[347256204,1735641052697,-3262.99,0.0002,3]
[347256205,1735641052706,-2130.49,0.0002,3]
[347256206,1735641052715,-661.64,0.0002,3]
[347256207,1735641052724,-1444.32,0.0002,3]
[347256208,1735641052733,-222.00944134,0.0002,3]
[347256209,1735641052742,-500.0,0.0002,3]
[347256210,1735641052751,-1080.15,0.0002,3]
[347256211,1735641052760,-500.0,0.0002,3]
[347256212,1735641052769,-500.0,0.0002,2]
[347256213,1735641052778,-1212.67,0.0002,3]
[347256214,1735641052789,-500.0,0.0002,3]
[347256215,1735641052800,-151.0,0.000201,4]
[347256216,1735641052810,-555.87786428,0.00020173,2]
[347256217,1735641052819,-500.0,0.00020273,3]
[347256218,1735641052828,-500.0,0.00020273,3]
[347256219,1735641052838,-500.0,0.00020273,3]
[347256220,1735641052848,-500.0,0.00020273,3]
[347256221,1735641052857,-500.0,0.00020273,3]
[347256222,1735641052867,-500.0,0.00020273,3]
[347256223,1735641052876,-1861.03,0.00020273,3]
[347256224,1735641052885,-500.0,0.00020273,3]
[347256225,1735641052894,-500.0,0.00020273,3]
[347256226,1735641052904,-500.0,0.00020273,3]
[347256227,1735641052914,-500.0,0.00020273,2]
[347256228,1735641052924,-500.0,0.00020273,3]
[347256229,1735641052933,-500.0,0.00020273,3]
[347256230,1735641052942,-500.0,0.00020273,3]
[347256231,1735641053010,-500.0,0.00020273,3]
[347256232,1735641053019,-500.0,0.00020273,3]
[347256233,1735641053028,-500.0,0.00020273,3]
[347256234,1735641053037,-573.27063744,0.00020273,3]
[347256235,1735641053047,-500.0,0.00020273,3]
[347256236,1735641053056,-7532.69,0.00020273,3]
[347256237,1735641053065,-500.0,0.00020273,3]
[347256238,1735641053074,-558.44,0.00020273,3]
[347256239,1735641053083,-500.0,0.00020273,3]
[347256240,1735641053092,-500.0,0.00020273,3]
[347256241,1735641053102,-500.0,0.00020273,3]
[347256242,1735641053111,-1170.35,0.00020273,3]
[347256243,1735641053120,-859.02,0.00020273,3]
[347256244,1735641053129,-500.0,0.00020273,3]
[347256245,1735641053138,-767.32,0.00020273,3]
[347256246,1735641053147,-500.0,0.00020273,3]
[347256247,1735641053156,-771.55,0.00020273,3]
[347256248,1735641053165,-500.0,0.00020273,3]
[347256249,1735641053175,-721.11,0.00020273,3]
[347256250,1735641053184,-512.91,0.00020273,3]
[347256251,1735641053193,-807.01,0.00020273,3]
[347256252,1735641053202,-500.0,0.00020273,3]
[347256253,1735641053210,-500.0,0.00020273,3]
[347256254,1735641053219,-2707.79,0.00020273,3]
[347256255,1735641053229,-500.0,0.00020273,3]
[347256256,1735641053238,-500.0,0.00020273,3]
[347256257,1735641053247,-500.0,0.00020273,3]
[347256258,1735641053256,-500.0,0.00020273,3]
[347256259,1735641053265,-500.0,0.00020273,3]
[347256260,1735641053274,-500.0,0.00020273,3]
[347256261,1735641053283,-1038.44,0.00020273,3]
[347256262,1735641053292,-500.0,0.00020273,3]
[347256263,1735641053301,-1432.65,0.00020273,3]
[347256264,1735641053310,-500.0,0.00020273,3]
[347256265,1735641053319,-500.0,0.00020273,3]
[347256266,1735641053328,-1216.76,0.00020273,3]
[347256267,1735641053337,-500.0,0.00020273,3]
[347256268,1735641053346,-29851.26,0.00020273,3]
[347256269,1735641053356,-1072.34,0.00020273,3]
[347256270,1735641053365,-500.0,0.00020273,3]
[347256271,1735641053374,-500.0,0.00020273,3]
[347256272,1735641053383,-617.6,0.00020273,3]
[347256273,1735641053392,-561.65,0.00020273,3]
[347256274,1735641053401,-500.0,0.00020273,3]
[347256275,1735641053412,-500.0,0.00020273,3]
[347256276,1735641053421,-965.02,0.00020273,3]
[347256277,1735641053431,-500.0,0.00020273,3]
[347256278,1735641053441,-3937.91,0.00020273,3]
[347256279,1735641053450,-500.0,0.00020273,3]
[347256280,1735641053459,-550.12,0.00020273,3]
[347256281,1735641053468,-500.0,0.00020273,3]
[347256282,1735641053477,-590.87,0.00020273,3]
[347256283,1735641053486,-638.95,0.00020273,3]
[347256284,1735641053495,-842.09,0.00020273,3]
[347256285,1735641053504,-500.0,0.00020273,3]
[347256286,1735641053513,-500.0,0.00020273,3]
[347256287,1735641053522,-531.14,0.00020273,3]
[347256288,1735641053531,-500.0,0.00020273,3]
[347256289,1735641053540,-500.0,0.00020273,3]
[347256290,1735641053549,-500.0,0.00020273,3]
[347256291,1735641053558,-500.0,0.00020273,3]
[347256292,1735641053568,-500.0,0.00020273,3]
[347256293,1735641053577,-6278.26,0.00020273,3]
[347256294,1735641053585,-512.72,0.00020273,3]
[347256295,1735641053595,-500.0,0.00020273,3]
[347256296,1735641053604,-500.0,0.00020273,3]
[347256297,1735641053613,-499.0,0.00020273,2]
[347256298,1735641053621,-500.0,0.00020273,3]
[347256299,1735641053630,-500.0,0.00020273,3]
[347256300,1735641053639,-4288.12,0.00020273,3]
[347256301,1735641053648,-3262.99,0.00020273,3]
[347256302,1735641053658,-2130.49,0.00020273,3]
[347256303,1735641053667,-661.64,0.00020273,3]
[347256304,1735641053676,-1444.32,0.00020273,3]
[347256305,1735641053685,-192.88582489,0.00020273,3]
[347256306,1735641053694,-1080.15,0.00020273,3]
[347256307,1735641053703,-500.0,0.00020273,3]
[347256308,1735641053711,-500.0,0.00020273,2]
[347256309,1735641053720,-1212.67,0.00020273,3]
[347256310,1735641053729,-500.0,0.00020273,3]
[347256311,1735641053738,-151.0,0.000203,4]
[347256312,1735641053747,-938.82663102,0.00020321,2]
[347256313,1735641053755,-222.0,0.00020329,2]
[347256314,1735641053764,-222.0,0.00020329,2]
[347256315,1735641053773,-222.0,0.00020329,2]
[347256316,1735641053782,-222.0,0.00020329,2]
[347256317,1735641053796,-222.0,0.00020329,2]
[347256318,1735641053806,-222.0,0.00020329,2]
[347256319,1735641053815,-222.0,0.00020329,2]
[347256320,1735641053824,-222.0,0.00020329,2]
[347256321,1735641053835,-222.0,0.00020329,2]
[347256322,1735641053845,-222.0,0.00020329,2]
[347256323,1735641053854,-222.0,0.00020329,2]
[347256324,1735641053863,-222.0,0.00020329,2]
[347256325,1735641053874,-222.0,0.00020329,2]
[347256326,1735641053883,-162.0,0.00020329,2]
[347256327,1735641053892,-162.0,0.00020329,2]
[347256328,1735641053901,-162.0,0.00020329,2]
[347256329,1735641053912,-162.0,0.00020329,2]
[347256330,1735641053921,-162.0,0.00020329,2]
[347256331,1735641053930,-162.0,0.00020329,2]
[347256332,1735641053939,-162.0,0.00020329,2]
[347256333,1735641053948,-162.0,0.00020329,2]
[347256334,1735641053957,-162.0,0.00020329,2]
[347256335,1735641053966,-162.0,0.00020329,2]
[347256336,1735641053975,-162.0,0.00020329,2]
[347256337,1735641053985,-162.0,0.00020329,2]
[347256338,1735641053994,-162.0,0.00020329,2]
[347256339,1735641054003,-222.0,0.00020329,2]
[347256340,1735641054012,-222.0,0.00020329,2]
[347256341,1735641054022,-222.0,0.00020329,2]
[347256342,1735641054031,-222.0,0.00020329,2]
[347256343,1735641054096,-222.0,0.00020329,2]
[347256344,1735641054106,-222.0,0.00020329,2]
[347256345,1735641054115,-222.0,0.00020329,2]
[347256346,1735641054125,-222.0,0.00020329,2]
[347256347,1735641054134,-222.0,0.00020329,2]
[347256348,1735641054143,-222.0,0.00020329,2]
[347256349,1735641054152,-222.0,0.00020329,2]
[347256350,1735641054162,-222.0,0.00020329,2]
[347256351,1735641054171,-222.0,0.00020329,2]
[347256352,1735641054180,-222.0,0.00020329,2]
[347256353,1735641054189,-163.04571342,0.00020358,2]
[347256354,1735641054199,-151.0,0.000204,3]
[347256355,1735641054208,-213.904239,0.00020447,2]
[347256356,1735641054217,-1934.3365,0.000205,2]
[347256357,1735641054226,-338.636171,0.00020521,2]
[347256358,1735641054235,-1000.0,0.00020521,2]
[347256359,1735641054244,-500.0,0.00020525,2]
[347256360,1735641054253,-500.0,0.00020544,2]
[347256361,1735641054263,-500.0,0.00020547,3]
[347256362,1735641054272,-500.0,0.00020547,3]
[347256363,1735641054281,-613.99,0.00020547,3]
[347256364,1735641054290,-500.0,0.00020547,3]
[347256365,1735641054299,-500.0,0.00020547,3]
[347256366,1735641054308,-500.0,0.00020547,3]
[347256367,1735641054317,-1861.03,0.00020547,3]
[347256368,1735641054326,-629.88,0.00020547,3]
[347256369,1735641054335,-500.0,0.00020547,3]
[347256370,1735641054343,-500.0,0.00020547,3]
[347256371,1735641054353,-500.0,0.00020547,2]
[347256372,1735641054362,-500.0,0.00020547,3]
[347256373,1735641054372,-500.0,0.00020547,3]
[347256374,1735641054381,-500.0,0.00020547,3]
[347256375,1735641054390,-500.0,0.00020547,3]
[347256376,1735641054400,-500.0,0.00020547,3]
[347256377,1735641054409,-500.0,0.00020547,3]
[347256378,1735641054419,-7532.69,0.00020547,3]
[347256379,1735641054428,-500.0,0.00020547,3]
[347256380,1735641054438,-558.44,0.00020547,3]
[347256381,1735641054447,-500.0,0.00020547,3]
[347256382,1735641054456,-500.0,0.00020547,3]
[347256383,1735641054465,-500.0,0.00020547,3]
[347256384,1735641054474,-1170.35,0.00020547,3]
[347256385,1735641054484,-859.02,0.00020547,3]
[347256386,1735641054493,-500.0,0.00020547,3]
[347256387,1735641054503,-767.32,0.00020547,3]
[347256388,1735641054512,-500.0,0.00020547,3]
[347256389,1735641054521,-771.55,0.00020547,3]
[347256390,1735641054531,-500.0,0.00020547,3]
[347256391,1735641054540,-721.11,0.00020547,3]
[347256392,1735641054549,-512.91,0.00020547,3]
[347256393,1735641054559,-807.01,0.00020547,3]
[347256394,1735641054568,-500.0,0.00020547,3]
[347256395,1735641054584,-500.0,0.00020547,3]
[347256396,1735641054600,-2707.79,0.00020547,3]
[347256397,1735641054615,-500.0,0.00020547,3]
[347256398,1735641054632,-500.0,0.00020547,3]
[347256399,1735641054649,-500.0,0.00020547,3]
[347256400,1735641054667,-500.0,0.00020547,3]
[347256401,1735641054682,-500.0,0.00020547,3]
[347256402,1735641054697,-1038.44,0.00020547,3]
[347256403,1735641054712,-1432.65,0.00020547,3]
[347256404,1735641054726,-500.0,0.00020547,3]
[347256405,1735641054740,-500.0,0.00020547,3]
[347256406,1735641054755,-500.0,0.00020547,3]
[347256407,1735641054771,-1216.76,0.00020547,3]
[347256408,1735641054788,-500.0,0.00020547,3]
[347256409,1735641054805,-29851.26,0.00020547,3]
[347256410,1735641054817,-1072.34,0.00020547,3]
[347256411,1735641054833,-500.0,0.00020547,3]
[347256412,1735641054848,-500.0,0.00020547,3]
[347256413,1735641054860,-617.6,0.00020547,3]
[347256414,1735641054875,-561.65,0.00020547,3]
[347256415,1735641054887,-500.0,0.00020547,3]
[347256416,1735641054901,-500.0,0.00020547,3]
[347256417,1735641054915,-965.02,0.00020547,3]
[347256418,1735641054928,-500.0,0.00020547,3]
[347256419,1735641054941,-3937.91,0.00020547,3]
[347256420,1735641054954,-500.0,0.00020547,3]
[347256421,1735641054968,-550.12,0.00020547,3]
[347256422,1735641054981,-180.39930254,0.00020547,3]
[347256423,1735641054994,-638.95,0.00020547,3]
[347256424,1735641055007,-590.87,0.00020547,3]
[347256425,1735641055020,-500.0,0.00020547,3]
[347256426,1735641055033,-842.09,0.00020547,3]
[347256427,1735641055046,-500.0,0.00020547,3]
[347256428,1735641055059,-531.14,0.00020547,3]
[347256429,1735641055073,-500.0,0.00020547,3]
[347256430,1735641055086,-500.0,0.00020547,3]
[347256431,1735641055100,-500.0,0.00020547,3]
[347256432,1735641055113,-500.0,0.00020547,3]
[347256433,1735641055125,-584.53986931,0.00020547,3]
[347256434,1735641055139,-6278.26,0.00020547,3]
[347256435,1735641055152,-512.72,0.00020547,3]
[347256436,1735641055166,-500.0,0.00020547,3]
[347256437,1735641055179,-500.0,0.00020547,3]
[347256438,1735641055192,-500.0,0.00020547,3]
[347256439,1735641055205,-500.0,0.00020547,3]
[347256440,1735641055216,-3262.99,0.00020547,3]
[347256441,1735641055225,-4288.12,0.00020547,3]
[347256442,1735641055234,-2130.49,0.00020547,3]
[347256443,1735641055244,-661.64,0.00020547,3]
[347256444,1735641055254,-1444.32,0.00020547,3]
[347256445,1735641055263,-1080.15,0.00020547,3]
[347256446,1735641055375,-500.0,0.00020547,3]
[347256447,1735641055389,-500.0,0.00020547,2]
[347256448,1735641055398,-1212.67,0.00020547,3]
[347256449,1735641055407,-625.0,0.00020547,3]
[347256450,1735641055417,-160.0,0.00020548,3]
[347256451,1735641055427,-197.25212304,0.00020548,5]
[347256452,1735641055436,-151.0,0.000207,3]
[347256453,1735641055445,-338.636171,0.00020712,2]
[347256454,1735641055455,-7569.60242285,0.00020791,3]
[347256455,1735641055464,-155.0,0.00020814,2]
[347256456,1735641055474,-156.36,0.00020814,2]
[347256457,1735641055483,-500.0,0.00020821,3]
[347256458,1735641055492,-500.0,0.00020821,3]
[347256459,1735641055502,-500.0,0.00020821,3]
[347256460,1735641055511,-500.0,0.00020821,3]
[347256461,1735641055520,-1861.03,0.00020821,3]
[347256462,1735641055529,-500.0,0.00020821,3]
[347256463,1735641055538,-500.0,0.00020821,3]
[347256464,1735641055547,-500.0,0.00020821,2]
[347256465,1735641055556,-641.08418121,0.00020821,3]
[347256466,1735641055566,-500.0,0.00020821,3]
[347256467,1735641055575,-500.0,0.00020821,3]
[347256468,1735641055584,-500.0,0.00020821,3]
[347256469,1735641055593,-405.35501028,0.00020821,3]
[347256470,1735641055602,-7532.69,0.00020821,3]
[347256471,1735641055611,-500.0,0.00020821,3]
[347256472,1735641055621,-558.44,0.00020821,3]
[347256473,1735641055630,-500.0,0.00020821,3]
[347256474,1735641055639,-500.0,0.00020821,3]
[347256475,1735641055648,-500.0,0.00020821,3]
[347256476,1735641055658,-859.02,0.00020821,3]
[347256477,1735641055667,-500.0,0.00020821,3]
[347256478,1735641055676,-767.32,0.00020821,3]
[347256479,1735641055685,-500.0,0.00020821,3]
[347256480,1735641055694,-771.55,0.00020821,3]
[347256481,1735641055703,-500.0,0.00020821,3]
[347256482,1735641055711,-721.11,0.00020821,3]
[347256483,1735641055720,-512.91,0.00020821,3]
[347256484,1735641055731,-807.01,0.00020821,3]
[347256485,1735641055740,-500.0,0.00020821,3]
[347256486,1735641055749,-500.0,0.00020821,3]
[347256487,1735641055758,-2707.79,0.00020821,3]
[347256488,1735641055767,-500.0,0.00020821,3]
[347256489,1735641055776,-500.0,0.00020821,3]
[347256490,1735641055786,-500.0,0.00020821,3]
[347256491,1735641055798,-574.15,0.00020821,3]
[347256492,1735641055807,-500.0,0.00020821,3]
[347256493,1735641055816,-1038.44,0.00020821,3]
[347256494,1735641055825,-500.0,0.00020821,3]
[347256495,1735641055835,-1432.65,0.00020821,3]
[347256496,1735641055844,-500.0,0.00020821,3]
[347256497,1735641055854,-500.0,0.00020821,3]
[347256498,1735641055863,-1216.76,0.00020821,3]